[Event "Lueneburg Open-A 2019"]
[Site "Lueneburg"]
[Date "2019.08.10"]
[Round "8.29"]
[White "Lau, Felix"]
[Black "Moysich, Dirk"]
[Result "1-0"]
[ECO "B07"]
[WhiteElo "2044"]
[BlackElo "1871"]
[Annotator "NA"]
[PlyCount "59"]
[EventDate "2019.08.03"]
[EventType "swiss"]
[EventCountry "GER"]
[SourceTitle "playchess.com"]
[Source "ChessBase"]
[SourceQuality "1"]
[TimeControl "40/5400+30:1800+30"]

1. e4 {[%emt 0:03:39]} d6 {[%emt 0:00:00]} 2. d4 {[%emt 0:00:09]} Nf6 {[%emt 0:00:00]} 3. Nc3 {[%emt 0:00:15]} e5 {[%emt 0:00:12]} 4. dxe5 {[%emt 0:00:45]} dxe5 {[%emt 0:00:10]} 5. Qxd8+ {[%emt 0:00:05]} Kxd8 {[%emt 0:00:07]} 6. Nf3 {[%emt 0:00:53]} Bd6 {[%emt 0:01:56]} 7. Bc4 {[%emt 0:03:01]} Ke7 {[%emt 0:09:16]} 8. Bg5 {[%emt 0:08:37]} c6 {[%emt 0:08:11]} 9. O-O-O {[%emt 0:01:19]} Be6 {[%emt 0:06:27]} 10. Rxd6 {[%emt 0:09:39]} Kxd6 {[%emt 0:05:04]} 11. Rd1+ {[%emt 0:00:12]} Ke7 {[%emt 0:02:25]} 12. Nxe5 {[%emt 0:00:06]} h6 {[%emt 0:11:23]} 13. Bh4 {[%emt 0:06:36]} g5 {[%emt 0:08:59]} 14. Bg3 {[%emt 0:00:02]} Nh5 {[%emt 0:01:00]} 15. Nd5+ {[%emt 0:17:45]} cxd5 {[%emt 0:03:02]} 16. exd5 {[%emt 0:00:06]} Rd8 {[%emt 0:18:29]} 17. Re1 {[%emt 0:05:36]} Nxg3 {[%emt 0:01:09]} 18. dxe6 {[%emt 0:00:50]} f5 {[%emt 0:09:35]} 19. Ng6+ {[%emt 0:03:31]} Kf6 {[%emt 0:01:52]} 20. e7 {[%emt 0:00:19]} Re8 {[%emt 0:00:16]} 21. Re6+ {[%emt 0:00:19]} Kg7 {[%emt 0:00:19]} 22. Nf8 {[%emt 0:02:12]} Rxf8 {[%emt 0:02:06]} 23. e8=Q {[%emt 0:00:21]} Rxe8 {[%emt 0:00:11]} 24. Rxe8 {[%emt 0:00:01]} Ne4 {[%emt 0:01:12]} 25. Bd5 {[%emt 0:01:01]} Nd6 {[%emt 0:05:53]} 26. Rg8+ {[%emt 0:01:28]} Kf6 {[%emt 0:00:58]} 27. c4 {[%emt 0:00:01]} a5 {[%emt 0:00:24]} 28. c5 {[%emt 0:00:28]} Ra6 {[%emt 0:02:13]} 29. Rxb8 {[%emt 0:01:19]} Ne4 {[%emt 0:00:49]} 30. Bxb7 {[%emt 0:00:33]} 1-0

[Event "Lueneburg Open-A 2019"]
[Site "Lueneburg"]
[Date "2019.08.10"]
[Round "8.30"]
[White "Melzer, Marcel"]
[Black "Porth, Hartmut"]
[Result "1/2-1/2"]
[ECO "B00"]
[WhiteElo "1843"]
[BlackElo "2032"]
[Annotator "NA"]
[PlyCount "101"]
[EventDate "2019.08.03"]
[EventType "swiss"]
[EventCountry "GER"]
[SourceTitle "playchess.com"]
[Source "ChessBase"]
[SourceQuality "1"]
[TimeControl "40/5400+30:1800+30"]

1. e4 {[%emt 0:00:00]} Nc6 {[%emt 0:00:00]} 2. d4 {[%emt 0:00:00]} d5 {[%emt 0:00:00]} 3. e5 {[%emt 0:00:06]} Bf5 {[%emt 0:00:00]} 4. c3 {[%emt 0:00:19]} e6 {[%emt 0:00:02]} 5. f4 {[%emt 0:01:27]} Nge7 {[%emt 0:04:16]} 6. Nf3 {[%emt 0:01:29]} Bg6 {[%emt 0:02:36]} 7. Nh4 {[%emt 0:07:29]} Nf5 {[%emt 0:01:50]} 8. Nxf5 {[%emt 0:04:17]} Bxf5 {[%emt 0:00:04]} 9. Be3 {[%emt 0:01:11]} Be7 {[%emt 0:00:49]} 10. Bd3 {[%emt 0:04:16]} Qd7 {[%emt 0:03:18]} 11. Bxf5 {[%emt 0:04:42]} exf5 {[%emt 0:00:29]} 12. Nd2 {[%emt 0:00:38]} Nd8 {[%emt 0:00:26]} 13. Qc2 {[%emt 0:06:01]} g6 {[%emt 0:01:17]} 14. Nf3 {[%emt 0:01:35]} Ne6 {[%emt 0:00:19]} 15. g3 {[%emt 0:02:18]} b5 {[%emt 0:02:41]} 16. O-O {[%emt 0:06:22]} O-O {[%emt 0:01:32]} 17. Rfd1 {[%emt 0:06:32]} c6 {[%emt 0:02:59]} 18. b4 {[%emt 0:06:27]} a5 {[%emt 0:00:27]} 19. a3 {[%emt 0:05:49]} Ra6 {[%emt 0:00:07]} 20. Qb2 {[%emt 0:15:03]} Rfa8 {[%emt 0:01:42]} 21. Ne1 {[%emt 0:03:04]} R8a7 {[%emt 0:03:44]} 22. Nc2 {[%emt 0:02:57]} Nc7 {[%emt 0:07:22]} 23. Rd3 {[%emt 0:01:46]} Na8 {[%emt 0:01:10]} 24. Qc1 {[%emt 0:02:56]} Nb6 {[%emt 0:01:56]} 25. Bd2 {[%emt 0:02:22]} Nc4 {[%emt 0:03:20]} 26. Be1 {[%emt 0:01:09]} Qc8 {[%emt 0:08:10]} 27. Kh1 {[%emt 0:03:31]} Qa8 {[%emt 0:01:55]} 28. Kg1 {[%emt 0:00:32]} Bf8 {[%emt 0:12:11]} 29. Bf2 {[%emt 0:03:15]} h6 {[%emt 0:10:32]} 30. h4 {[%emt 0:03:33]} Be7 {[%emt 0:00:49]} 31. Kh2 {[%emt 0:02:17]} Qc8 {[%emt 0:01:11]} 32. Rf3 {[%emt 0:01:04]} Ra8 {[%emt 0:05:02]} 33. Be1 {[%emt 0:00:25]} Kg7 {[%emt 0:00:42]} 34. Rd3 {[%emt 0:00:37]} Qe6 {[%emt 0:01:57]} 35. Ne3 {[%emt 0:01:23]} Rh8 {[%emt 0:01:11]} 36. Bf2 {[%emt 0:00:20]} Raa8 {[%emt 0:02:22]} 37. Qe1 {[%emt 0:00:39]} Rag8 {[%emt 0:01:24]} 38. Nc2 {[%emt 0:00:22]} Kf8 {[%emt 0:00:55]} 39. Qe2 {[%emt 0:00:29]} Nd6 {[%emt 0:02:03]} 40. bxa5 {[%emt 0:00:39]} Ne4 {[%emt 0:17:10]} 41. a4 bxa4 {[%emt 0:30:30]} 42. Rxa4 {[%emt 0:31:39]} g5 43. a6 {[%emt 0:00:30]} gxf4 {[%emt 0:01:00]} 44. a7 {[%emt 0:00:30]} Kg7 {[%emt 0:00:30]} 45. gxf4 {[%emt 0:00:30]} Kh7 {[%emt 0:00:30]} 46. h5 {[%emt 0:00:30]} Ra8 {[%emt 0:00:30]} 47. Nb4 {[%emt 0:00:30]} Qd7 {[%emt 0:00:30]} 48. Qa2 {[%emt 0:00:30]} Rhg8 {[%emt 0:00:30]} 49. Ra6 {[%emt 0:00:30]} Bxb4 {[%emt 0:00:30]} 50. cxb4 {[%emt 0:00:30]} Qe8 {[%emt 0:00:30]} 51. Rh3 {[%emt 0:00:30]} 1/2-1/2

[Event "Lueneburg Open-A 2019"]
[Site "Lueneburg"]
[Date "2019.08.10"]
[Round "8.31"]
[White "Prasse, Philipp"]
[Black "Schulze, Lukas"]
[Result "1-0"]
[ECO "B07"]
[WhiteElo "2003"]
[BlackElo "1724"]
[Annotator "NA"]
[PlyCount "93"]
[EventDate "2019.08.03"]
[EventType "swiss"]
[EventCountry "GER"]
[SourceTitle "playchess.com"]
[Source "ChessBase"]
[SourceQuality "1"]
[TimeControl "40/5400+30:1800+30"]

1. e4 {[%emt 0:00:00]} c5 {[%emt 0:00:00]} 2. c3 {[%emt 0:00:00]} d6 {[%emt 0:01:55]} 3. d4 {[%emt 0:00:00]} Nf6 {[%emt 0:01:07]} 4. Bd3 {[%emt 0:00:00]} Nc6 {[%emt 0:01:47]} 5. Nf3 {[%emt 0:00:56]} Bg4 {[%emt 0:03:03]} 6. Be3 {[%emt 0:01:00]} Qb6 {[%emt 0:02:10]} 7. Na3 {[%emt 0:09:36]} Bxf3 {[%emt 0:04:43]} 8. gxf3 {[%emt 0:00:28]} g6 {[%emt 0:03:15]} 9. Nc4 {[%emt 0:04:41]} Qc7 {[%emt 0:03:37]} 10. dxc5 {[%emt 0:07:04]} d5 {[%emt 0:01:38]} 11. Nd2 {[%emt 0:04:19]} Bg7 {[%emt 0:10:02]} 12. Qe2 {[%emt 0:07:16]} O-O {[%emt 0:01:45]} 13. f4 {[%emt 0:05:42]} e6 {[%emt 0:02:07]} 14. e5 {[%emt 0:00:43]} Nd7 {[%emt 0:02:40]} 15. Nf3 {[%emt 0:00:39]} Ne7 {[%emt 0:02:49]} 16. b4 {[%emt 0:01:49]} a6 {[%emt 0:02:34]} 17. Rc1 {[%emt 0:01:04]} Rfd8 {[%emt 0:04:08]} 18. Nd4 {[%emt 0:02:08]} Nc6 {[%emt 0:02:40]} 19. O-O {[%emt 0:03:00]} Rf8 {[%emt 0:03:48]} 20. a4 {[%emt 0:03:09]} Nd8 {[%emt 0:01:53]} 21. Rfe1 {[%emt 0:09:03]} f6 {[%emt 0:03:46]} 22. exf6 {[%emt 0:00:37]} Nxf6 {[%emt 0:01:13]} 23. Bd2 {[%emt 0:01:14]} Nh5 {[%emt 0:01:33]} 24. Nxe6 {[%emt 0:01:18]} Nxe6 {[%emt 0:00:10]} 25. Qxe6+ {[%emt 0:00:02]} Qf7 {[%emt 0:00:18]} 26. f5 {[%emt 0:03:13]} Qxe6 {[%emt 0:05:27]} 27. fxe6 {[%emt 0:01:16]} Rae8 {[%emt 0:02:18]} 28. b5 {[%emt 0:12:41]} axb5 {[%emt 0:01:43]} 29. Bxb5 {[%emt 0:00:20]} Re7 {[%emt 0:00:44]} 30. Bd7 {[%emt 0:02:16]} Nf6 {[%emt 0:01:34]} 31. Bg5 {[%emt 0:00:42]} Ra8 {[%emt 0:02:54]} 32. Red1 {[%emt 0:04:08]} Ra5 {[%emt 0:01:11]} 33. Bxf6 {[%emt 0:00:35]} Bxf6 {[%emt 0:00:26]} 34. Rxd5 {[%emt 0:00:21]} b6 {[%emt 0:00:24]} 35. c4 {[%emt 0:01:51]} bxc5 {[%emt 0:01:15]} 36. Rb1 {[%emt 0:03:15]} Bd4 {[%emt 0:01:42]} 37. Rd6 {[%emt 0:05:28]} Ra8 {[%emt 0:01:03]} 38. Rdb6 {[%emt 0:02:48]} Rf8 {[%emt 0:01:26]} 39. Rb8 {[%emt 0:00:46]} Bxf2+ {[%emt 0:01:12]} 40. Kg2 {[%emt 0:01:37]} Bd4 {[%emt 0:01:07]} 41. a5 {[%emt 0:03:20]} Be5 {[%emt 0:04:36]} 42. Rxf8+ {[%emt 0:00:43]} Kxf8 {[%emt 0:00:02]} 43. a6 {[%emt 0:00:13]} Rxd7 {[%emt 0:01:29]} 44. exd7 {[%emt 0:00:13]} Ke7 {[%emt 0:00:05]} 45. a7 {[%emt 0:00:09]} Bxh2 {[%emt 0:00:30]} 46. Kxh2 {[%emt 0:00:09]} Kxd7 {[%emt 0:00:08]} 47. a8=Q {[%emt 0:00:19]} 1-0

[Event "Lueneburg Open-A 2019"]
[Site "Lueneburg"]
[Date "2019.08.10"]
[Round "8.32"]
[White "Darpan, Inani"]
[Black "Kroencke, Manfred"]
[Result "1-0"]
[ECO "B40"]
[WhiteElo "1956"]
[BlackElo "2047"]
[Annotator "NA"]
[PlyCount "66"]
[EventDate "2019.08.03"]
[EventType "swiss"]
[EventCountry "GER"]
[SourceTitle "playchess.com"]
[Source "ChessBase"]
[SourceQuality "1"]
[TimeControl "40/5400+30:1800+30"]

1. e4 {[%emt 0:00:07]} c5 {[%emt 0:00:00]} 2. Nf3 {[%emt 1:30:53]} e6 {[%emt 0:00:00]} 3. b3 {[%emt 0:00:30]} Nf6 {[%emt 0:04:44]} 4. e5 {[%emt 0:00:30]} Nd5 {[%emt 0:00:23]} 5. Bb2 {[%emt 0:00:30]} Nc6 {[%emt 0:04:01]} 6. g3 {[%emt 0:00:30]} Be7 {[%emt 0:02:57]} 7. Bg2 {[%emt 0:00:30]} O-O {[%emt 0:01:38]} 8. O-O {[%emt 0:00:30]} f5 {[%emt 1:20:17]} 9. c4 {[%emt 0:00:30]} Nc7 {[%emt 1:19:34]} 10. d4 {[%emt 0:00:30]} cxd4 {[%emt 1:18:12]} 11. Nxd4 {[%emt 0:00:30]} Rb8 {[%emt 0:00:00]} 12. Qe2 {[%emt 0:00:30]} Nxd4 {[%emt 0:00:00]} 13. Bxd4 {[%emt 0:00:30]} b6 {[%emt 0:00:00]} 14. Nc3 {[%emt 0:00:30]} Bb7 {[%emt 0:00:00]} 15. f4 {[%emt 0:00:30]} Bxg2 {[%emt 0:00:00]} 16. Kxg2 {[%emt 0:00:30]} Qc8 {[%emt 0:00:00]} 17. Rad1 {[%emt 0:00:30]} Rf7 {[%emt 0:00:00]} 18. Rd3 {[%emt 0:00:30]} Bb4 {[%emt 0:00:00]} 19. Nb5 {[%emt 0:00:30]} Qb7+ {[%emt 0:00:00]} 20. Qf3 {[%emt 0:00:30]} Ne8 {[%emt 0:00:00]} 21. Qxb7 {[%emt 0:00:30]} Rxb7 {[%emt 0:00:00]} 22. Bc3 {[%emt 0:00:30]} Bf8 {[%emt 0:00:00]} 23. Rfd1 {[%emt 0:00:30]} a6 {[%emt 0:02:26]} 24. Nd6 {[%emt 0:00:00]} Bxd6 {[%emt 0:04:34]} 25. exd6 {[%emt 0:01:00]} Rf8 {[%emt 0:02:40]} 26. b4 {[%emt 0:00:30]} Nf6 {[%emt 0:00:08]} 27. Bxf6 gxf6 {[%emt 0:00:10]} 28. Rc1 {[%emt 0:01:00]} Rc8 {[%emt 0:00:07]} 29. c5 {[%emt 0:00:30]} bxc5 {[%emt 0:00:12]} 30. Rxc5 {[%emt 0:00:30]} Rxc5 {[%emt 0:00:12]} 31. bxc5 {[%emt 0:00:30]} Kf8 {[%emt 0:00:31]} 32. c6 {[%emt 0:00:30]} Rb2+ {[%emt 0:00:25]} 33. Kf3 {[%emt 0:00:30]} Rb3 {[%emt 0:03:04]} 1-0

[Event "Lueneburg Open-A 2019"]
[Site "Lueneburg"]
[Date "2019.08.10"]
[Round "8.34"]
[White "Hesse, Juergen"]
[Black "Nielsen, Joerg"]
[Result "0-1"]
[ECO "B04"]
[WhiteElo "1877"]
[BlackElo "2000"]
[Annotator "NA"]
[PlyCount "64"]
[EventDate "2019.08.03"]
[EventType "swiss"]
[EventCountry "GER"]
[SourceTitle "playchess.com"]
[Source "ChessBase"]
[SourceQuality "1"]
[TimeControl "40/5400+30:1800+30"]

1. e4 {[%emt 0:00:00]} Nf6 {[%emt 0:00:00]} 2. e5 {[%emt 0:00:08]} Nd5 {[%emt 0:00:00]} 3. d4 {[%emt 0:00:33]} d6 {[%emt 0:00:00]} 4. Nf3 {[%emt 0:01:18]} dxe5 {[%emt 0:01:24]} 5. Nxe5 {[%emt 0:03:24]} c6 {[%emt 0:00:20]} 6. Bd3 {[%emt 0:03:06]} g6 {[%emt 0:00:46]} 7. O-O {[%emt 1:25:01]} Bg7 {[%emt 0:00:15]} 8. c3 {[%emt 0:01:42]} Nd7 {[%emt 0:01:19]} 9. Re1 {[%emt 0:05:50]} O-O {[%emt 0:06:53]} 10. Na3 {[%emt 0:03:23]} Nxe5 {[%emt 0:01:05]} 11. dxe5 {[%emt 0:00:14]} Be6 {[%emt 0:00:34]} 12. Qf3 {[%emt 0:03:36]} Qc7 {[%emt 0:01:34]} 13. Qg3 {[%emt 1:10:21]} Rad8 {[%emt 0:02:35]} 14. Nc2 {[%emt 0:09:13]} c5 {[%emt 0:02:41]} 15. f4 {[%emt 0:07:26]} Qc8 {[%emt 0:05:39]} 16. Bc4 {[%emt 0:03:56]} a6 {[%emt 0:10:40]} 17. Ne3 {[%emt 0:03:48]} Nxe3 {[%emt 0:06:28]} 18. Bxe6 {[%emt 0:01:52]} Qxe6 {[%emt 0:00:54]} 19. Bxe3 {[%emt 0:01:21]} Rd3 {[%emt 0:03:03]} 20. Qf2 {[%emt 0:06:04]} b6 {[%emt 0:00:32]} 21. h3 {[%emt 0:05:32]} a5 {[%emt 0:05:31]} 22. Qe2 {[%emt 0:05:21]} Rd7 {[%emt 0:06:54]} 23. Qc2 {[%emt 0:29:33]} Rfd8 {[%emt 0:01:59]} 24. b3 {[%emt 0:01:42]} f6 {[%emt 0:09:08]} 25. exf6 {[%emt 0:02:40]} Qxf6 {[%emt 0:00:18]} 26. Rac1 {[%emt 0:01:32]} Rd5 {[%emt 0:06:31]} 27. Qe4 {[%emt 0:04:24]} Kf8 {[%emt 0:04:09]} 28. Rf1 {[%emt 0:04:21]} Qf5 {[%emt 0:22:48]} 29. Qf3 {[%emt 0:01:29]} Rd3 {[%emt 0:02:18]} 30. Rcd1 {[%emt 0:04:39]} Bxc3 {[%emt 0:03:12]} 31. Rxd3 {[%emt 0:02:20]} Rxd3 {[%emt 0:18:12]} 32. Qf2 {[%emt 0:01:21]} Rxe3 {[%emt 0:00:25]} 0-1

[Event "Lueneburg Open-A 2019"]
[Site "Lueneburg"]
[Date "2019.08.10"]
[Round "8.35"]
[White "Fabregas, Oliver"]
[Black "Wirries, Frank-Michael"]
[Result "1-0"]
[ECO "A49"]
[WhiteElo "1956"]
[BlackElo "1858"]
[Annotator "NA"]
[PlyCount "93"]
[EventDate "2019.08.03"]
[EventType "swiss"]
[EventCountry "GER"]
[SourceTitle "playchess.com"]
[Source "ChessBase"]
[SourceQuality "1"]
[TimeControl "40/5400+30:1800+30"]

1. Nf3 {[%emt 0:00:00]} Nf6 {[%emt 0:00:00]} 2. g3 {[%emt 0:00:00]} g6 {[%emt 0:00:00]} 3. Bg2 {[%emt 0:00:00]} Bg7 {[%emt 0:00:06]} 4. O-O {[%emt 0:00:00]} O-O {[%emt 0:00:12]} 5. d4 {[%emt 0:00:00]} d6 {[%emt 0:00:05]} 6. a4 {[%emt 0:00:00]} a5 {[%emt 0:04:18]} 7. b3 {[%emt 0:00:56]} Nbd7 {[%emt 0:02:04]} 8. Bb2 {[%emt 0:00:09]} c6 {[%emt 0:02:19]} 9. Re1 {[%emt 0:04:04]} Qc7 {[%emt 0:02:38]} 10. e4 {[%emt 0:02:49]} e5 {[%emt 0:07:52]} 11. Nbd2 {[%emt 0:07:39]} Re8 {[%emt 0:07:54]} 12. dxe5 {[%emt 0:04:44]} Nxe5 {[%emt 0:15:12]} 13. Nd4 {[%emt 0:04:41]} Be6 {[%emt 0:06:20]} 14. h3 {[%emt 0:08:06]} Rad8 {[%emt 0:10:00]} 15. Qe2 {[%emt 0:19:29]} Bc8 {[%emt 0:10:24]} 16. Rad1 {[%emt 0:03:58]} h6 {[%emt 0:08:51]} 17. Kh1 {[%emt 0:07:30]} Nh5 {[%emt 0:00:46]} 18. Nf1 {[%emt 0:04:19]} Nd7 {[%emt 0:01:35]} 19. c4 {[%emt 0:11:23]} Nc5 {[%emt 0:00:07]} 20. Qc2 {[%emt 0:00:57]} Re7 {[%emt 0:03:09]} 21. Re3 {[%emt 0:05:46]} Rde8 {[%emt 0:00:54]} 22. Rde1 {[%emt 0:00:22]} Ne6 {[%emt 0:03:01]} 23. Nxe6 {[%emt 0:01:07]} Rxe6 {[%emt 0:00:51]} 24. Bf3 {[%emt 0:01:47]} Nf6 {[%emt 0:00:36]} 25. Kg2 {[%emt 0:00:32]} Nd7 {[%emt 0:01:43]} 26. Bg4 {[%emt 0:01:51]} R6e7 {[%emt 0:00:02]} 27. f4 {[%emt 0:00:40]} Bxb2 {[%emt 0:01:38]} 28. Qxb2 {[%emt 0:00:08]} h5 {[%emt 0:00:59]} 29. Bf3 {[%emt 0:01:30]} Nc5 {[%emt 0:00:24]} 30. Qe2 {[%emt 0:01:50]} Qd7 {[%emt 0:00:30]} 31. g4 {[%emt 0:00:27]} f5 {[%emt 0:02:25]} 32. gxf5 {[%emt 0:01:19]} gxf5 {[%emt 0:00:18]} 33. Bxh5 {[%emt 0:01:07]} fxe4 {[%emt 0:00:40]} 34. Bxe8 {[%emt 0:00:29]} Rg7+ {[%emt 0:00:21]} 35. Kh2 {[%emt 0:00:29]} Qxe8 {[%emt 0:00:20]} 36. Ng3 {[%emt 0:02:38]} Qe6 {[%emt 0:01:03]} 37. f5 {[%emt 0:00:36]} Qe5 {[%emt 0:00:11]} 38. Qf2 {[%emt 0:00:29]} Rg5 {[%emt 0:03:11]} 39. f6 {[%emt 0:03:00]} Rh5 {[%emt 0:02:15]} 40. Rh1 {[%emt 0:02:27]} Bxh3 {[%emt 0:03:27]} 41. Kg1 {[%emt 0:30:34]} Nd3 {[%emt 0:04:01]} 42. Rxd3 {[%emt 0:00:00]} exd3 {[%emt 0:11:29]} 43. Nxh5 {[%emt 0:00:00]} d2 {[%emt 0:00:08]} 44. Qxd2 {[%emt 0:00:00]} Qxh5 {[%emt 0:00:50]} 45. Rxh3 {[%emt 0:00:00]} Qxh3 {[%emt 0:00:20]} 46. Qg5+ {[%emt 0:00:00]} Kf7 {[%emt 0:00:55]} 47. Qg7+ {[%emt 0:00:00]} 1-0

[Event "Lueneburg Open-A 2019"]
[Site "Lueneburg"]
[Date "2019.08.10"]
[Round "8.36"]
[White "Nixdorf, Andre"]
[Black "Kasipour Azbari, Seyed Arvin"]
[Result "0-1"]
[ECO "E92"]
[WhiteElo "1936"]
[BlackElo "1765"]
[Annotator "NA"]
[PlyCount "112"]
[EventDate "2019.08.03"]
[EventType "swiss"]
[EventCountry "GER"]
[SourceTitle "playchess.com"]
[Source "ChessBase"]
[SourceQuality "1"]
[TimeControl "40/5400+30:1800+30"]

1. d4 {[%emt 0:00:00]} Nf6 {[%emt 0:00:22]} 2. Nf3 {[%emt 0:00:00]} g6 {[%emt 0:00:06]} 3. c4 {[%emt 0:00:00]} Bg7 {[%emt 0:00:08]} 4. Nc3 {[%emt 0:00:00]} d6 {[%emt 0:00:15]} 5. e4 {[%emt 0:00:08]} O-O {[%emt 0:00:12]} 6. Be2 {[%emt 0:00:07]} e5 {[%emt 0:00:22]} 7. d5 {[%emt 0:00:40]} a5 {[%emt 0:00:25]} 8. O-O {[%emt 0:00:13]} Na6 {[%emt 0:00:30]} 9. Ne1 {[%emt 0:06:46]} Nc5 {[%emt 0:01:40]} 10. f3 {[%emt 0:00:19]} Nfd7 {[%emt 0:01:10]} 11. Be3 {[%emt 0:00:10]} f5 {[%emt 0:01:43]} 12. Nd3 {[%emt 0:00:13]} Nxd3 {[%emt 0:03:19]} 13. Bxd3 {[%emt 0:02:13]} f4 {[%emt 0:00:33]} 14. Bf2 {[%emt 0:00:10]} b6 {[%emt 0:02:53]} 15. a3 {[%emt 0:01:10]} g5 {[%emt 0:02:08]} 16. b4 {[%emt 0:00:41]} axb4 {[%emt 0:04:30]} 17. axb4 {[%emt 0:00:05]} Rxa1 {[%emt 0:00:34]} 18. Qxa1 {[%emt 0:00:05]} Nf6 {[%emt 0:00:31]} 19. c5 {[%emt 0:03:43]} bxc5 {[%emt 0:04:20]} 20. bxc5 {[%emt 0:00:06]} g4 {[%emt 0:01:47]} 21. Rb1 {[%emt 0:07:27]} gxf3 {[%emt 0:05:14]} 22. gxf3 {[%emt 0:00:04]} Nh5 {[%emt 0:04:35]} 23. Kf1 {[%emt 0:12:39]} Qg5 {[%emt 0:05:43]} 24. Be2 {[%emt 0:19:38]} Bh3+ {[%emt 0:16:26]} 25. Ke1 {[%emt 0:00:05]} Qg2 {[%emt 0:02:44]} 26. Nd1 {[%emt 0:02:07]} Qxh2 {[%emt 0:10:05]} 27. Qa7 {[%emt 0:01:08]} Ng3 {[%emt 0:02:48]} 28. Rb3 {[%emt 0:06:27]} Qh1+ {[%emt 0:07:43]} 29. Kd2 {[%emt 0:00:09]} Nxe2 {[%emt 0:02:52]} 30. Kxe2 {[%emt 0:00:06]} Bf1+ {[%emt 0:04:34]} 31. Kd2 {[%emt 0:00:08]} Bc4 {[%emt 0:00:21]} 32. Ra3 {[%emt 0:04:20]} Qf1 {[%emt 0:04:27]} 33. Qxc7 {[%emt 0:01:09]} Be2 {[%emt 0:00:38]} 34. Nc3 {[%emt 0:04:45]} Bxf3 {[%emt 0:06:18]} 35. Bh4 {[%emt 0:04:15]} Qg2+ {[%emt 0:00:35]} 36. Kd3 {[%emt 0:02:10]} Bxe4+ {[%emt 0:00:43]} 37. Kc4 {[%emt 0:00:12]} Bxd5+ {[%emt 0:02:51]} 38. Nxd5 {[%emt 0:04:28]} Qe4+ {[%emt 0:01:18]} 39. Kb5 {[%emt 0:00:48]} Qxd5 {[%emt 0:00:46]} 40. Qxd6 {[%emt 0:00:15]} Qb7+ {[%emt 0:00:33]} 41. Kc4 {[%emt 0:33:08]} Qe4+ {[%emt 0:30:45]} 42. Kb5 {[%emt 0:00:39]} f3 {[%emt 0:00:00]} 43. Ra4 {[%emt 0:00:00]} Qe2+ {[%emt 0:00:00]} 44. Kb6 {[%emt 0:00:00]} f2 {[%emt 0:00:00]} 45. Qd5+ {[%emt 0:00:00]} Kh8 {[%emt 0:00:00]} 46. Bxf2 {[%emt 0:00:00]} Qxf2 {[%emt 0:00:00]} 47. Ra8 {[%emt 0:03:33]} Rxa8 {[%emt 0:00:00]} 48. Qxa8+ {[%emt 0:00:05]} Qf8 {[%emt 0:00:00]} 49. Qd5 {[%emt 0:01:13]} Qb8+ {[%emt 0:00:00]} 50. Ka6 {[%emt 0:00:20]} Qc8+ {[%emt 0:00:00]} 51. Kb6 {[%emt 0:00:19]} Bf6 {[%emt 0:00:00]} 52. Kb5 {[%emt 0:02:37]} Qb8+ {[%emt 0:00:00]} 53. Kc4 {[%emt 0:02:54]} Qg8 {[%emt 0:01:08]} 54. Qxg8+ {[%emt 0:00:18]} Kxg8 {[%emt 0:00:08]} 55. Kd5 {[%emt 0:00:18]} Kf7 {[%emt 0:00:23]} 56. c6 {[%emt 0:00:00]} Ke7 {[%emt 0:06:54] Kd4} 0-1

[Event "Lueneburg Open-A 2019"]
[Site "Lueneburg"]
[Date "2019.08.10"]
[Round "8.37"]
[White "Schwarz, Jochen"]
[Black "Weidenhoefer, Max"]
[Result "1/2-1/2"]
[ECO "A41"]
[WhiteElo "1909"]
[BlackElo "1805"]
[Annotator "NA"]
[PlyCount "37"]
[EventDate "2019.08.03"]
[EventType "swiss"]
[EventCountry "GER"]
[SourceTitle "playchess.com"]
[Source "ChessBase"]
[SourceQuality "1"]
[TimeControl "40/5400+30:1800+30"]

1. c4 {[%emt 0:00:00]} c5 {[%emt 0:00:00]} 2. Nc3 {[%emt 0:00:00]} g6 {[%emt 0:00:00]} 3. Nf3 {[%emt 0:00:09]} Bg7 {[%emt 0:00:00]} 4. e3 {[%emt 0:00:27]} d6 {[%emt 0:00:52]} 5. d4 {[%emt 0:01:29]} Bg4 {[%emt 0:00:22]} 6. Be2 {[%emt 0:00:50]} Nd7 {[%emt 0:05:22]} 7. O-O {[%emt 0:01:19]} Ngf6 {[%emt 0:04:31]} 8. h3 {[%emt 0:02:14]} Bxf3 {[%emt 0:00:21]} 9. Bxf3 {[%emt 0:00:09]} Rb8 {[%emt 0:00:15]} 10. b3 {[%emt 0:06:26]} O-O {[%emt 0:01:56]} 11. Bb2 {[%emt 0:00:49]} a6 {[%emt 0:07:55]} 12. a4 {[%emt 0:04:16]} Ne8 {[%emt 0:07:48]} 13. Rb1 {[%emt 0:06:14]} Nc7 {[%emt 0:03:06]} 14. dxc5 {[%emt 0:07:18]} Nxc5 {[%emt 0:00:51]} 15. b4 {[%emt 0:02:07]} N5e6 {[%emt 0:01:15]} 16. Qd3 {[%emt 0:05:10]} Qd7 {[%emt 0:03:53]} 17. c5 {[%emt 0:06:01]} Rfd8 {[%emt 0:05:55]} 18. Rfd1 {[%emt 0:02:52]} Ne8 {[%emt 0:05:45]} 19. cxd6 {[%emt 0:05:15]} 1/2-1/2

[Event "Lueneburg Open-A 2019"]
[Site "Lueneburg"]
[Date "2019.08.11"]
[Round "9.3"]
[White "Carlstedt, Jonathan"]
[Black "Colpe, Malte"]
[Result "1/2-1/2"]
[ECO "D05"]
[WhiteElo "2408"]
[BlackElo "2367"]
[Annotator "NA"]
[PlyCount "67"]
[EventDate "2019.08.03"]
[EventType "swiss"]
[EventCountry "GER"]
[SourceTitle "playchess.com"]
[Source "ChessBase"]
[SourceQuality "1"]
[TimeControl "40/5400+30:1800+30"]

1. d4 {[%emt 0:00:00]} d5 {[%emt 0:00:00]} 2. Nf3 {[%emt 0:00:00]} Nf6 {[%emt 0:00:00]} 3. e3 {[%emt 0:00:00]} e6 {[%emt 0:01:11]} 4. Bd3 {[%emt 0:00:21]} c5 {[%emt 0:00:41]} 5. b3 {[%emt 0:00:04]} Bd6 {[%emt 0:04:38]} 6. Nbd2 {[%emt 0:01:00]} b6 {[%emt 0:16:52]} 7. Bb2 {[%emt 0:04:04]} Ba6 {[%emt 0:02:18]} 8. c4 {[%emt 0:02:26]} O-O {[%emt 0:05:07]} 9. O-O {[%emt 0:01:07]} Nc6 {[%emt 0:02:01]} 10. dxc5 {[%emt 0:06:47]} Bxc5 {[%emt 0:11:57]} 11. Qb1 {[%emt 0:04:54]} dxc4 {[%emt 0:16:47]} 12. Nxc4 {[%emt 0:00:32]} Be7 {[%emt 0:07:02]} 13. a3 {[%emt 0:03:55]} h6 {[%emt 0:00:57]} 14. Rd1 {[%emt 0:02:34]} Qc7 {[%emt 0:01:30]} 15. Qa2 {[%emt 0:01:18]} Rac8 {[%emt 0:01:49]} 16. Rac1 {[%emt 0:00:39]} Qb8 {[%emt 0:05:11]} 17. Na5 {[%emt 0:15:59]} Nxa5 {[%emt 0:00:24]} 18. Bxa6 {[%emt 0:00:06]} Rxc1 {[%emt 0:00:10]} 19. Rxc1 {[%emt 0:00:32]} b5 {[%emt 0:03:34]} 20. Bd4 {[%emt 0:01:33]} Qd6 {[%emt 0:08:32]} 21. Bxb5 {[%emt 0:02:07]} Qxa3 {[%emt 0:00:15]} 22. Qxa3 {[%emt 0:02:07]} Bxa3 {[%emt 0:00:02]} 23. Ra1 {[%emt 0:06:16]} Bb4 {[%emt 0:10:32]} 24. Be5 {[%emt 0:02:06]} Nd5 {[%emt 0:00:00]} 25. Ba4 {[%emt 0:11:30]} Rc8 {[%emt 0:00:00]} 26. Nd4 {[%emt 0:00:40]} f6 {[%emt 0:00:00]} 27. Bd7 {[%emt 0:00:55]} Rd8 {[%emt 0:00:23]} 28. Bxe6+ {[%emt 0:00:14]} Kf8 {[%emt 0:00:23]} 29. Bg3 {[%emt 0:00:52]} Bc3 {[%emt 0:01:20]} 30. Rxa5 {[%emt 0:01:47]} Bxa5 {[%emt 0:00:20]} 31. Nc6 {[%emt 0:00:05]} Nc3 {[%emt 0:00:57]} 32. Nxd8 {[%emt 0:10:20]} Ne2+ {[%emt 0:00:07]} 33. Kf1 {[%emt 0:00:05]} Nxg3+ {[%emt 0:00:04]} 34. hxg3 {[%emt 0:00:07]} 1/2-1/2